[Event "Titled Tuesday Blitz November 15 Early 2022"]
[White "Tomb, Maroun"]
[Black "Talibov, Shiroghlan"]
[WhiteFideId "5300398"]
[BlackFideId "13429078"]
[WhiteElo "2546"]
[BlackElo "2261"]
[Result "0-1"]
[Round "02"]
[TimeControl "180+1"]
[Date "2022.11.16"]
[WhiteClock "0:00:14"]
[BlackClock "0:00:05"]

1. e4 {[%clk 0:02:51]}  e6 {[%clk 0:02:58]} 2. d4 {[%clk 0:02:49]}  d5 {[%clk 0:02:59]} 3. Nd2 {[%clk 0:02:48]}  Nf6 {[%clk 0:02:54]} 4. e5 {[%clk 0:02:47]}  Nfd7 {[%clk 0:02:54]} 5. f4 {[%clk 0:02:48]}  c5 {[%clk 0:02:52]} 6. c3 {[%clk 0:02:49]}  Nc6 {[%clk 0:02:51]} 7. Ndf3 {[%clk 0:02:49]}  Qa5 {[%clk 0:02:46]} 8. Kf2 {[%clk 0:02:47]}  f6 {[%clk 0:02:37]} 9. Bd3 {[%clk 0:02:40]}  Be7 {[%clk 0:02:33]} 10. Ne2 {[%clk 0:02:39]}  O-O {[%clk 0:02:33]} 11. Kg3 {[%clk 0:02:38]}  fxe5 {[%clk 0:02:30]} 12. fxe5 {[%clk 0:02:38]}  cxd4 {[%clk 0:02:22]} 13. cxd4 {[%clk 0:02:38]}  Qb6 {[%clk 0:01:50]} 14. a3 {[%clk 0:02:32]}  Kh8 {[%clk 0:01:51]} 15. Bc2 {[%clk 0:02:31]}  Qc7 {[%clk 0:01:36]} 16. Qd3 {[%clk 0:02:20]}  g6 {[%clk 0:01:36]} 17. h4 {[%clk 0:02:01]}  Rf5 {[%clk 0:01:18]} 18. h5 {[%clk 0:01:57]}  gxh5 {[%clk 0:01:12]} 19. Nf4 {[%clk 0:01:51]}  Ndxe5 {[%clk 0:00:56]} 20. dxe5 {[%clk 0:01:47]}  Nxe5 {[%clk 0:00:57]} 21. Nxe5 {[%clk 0:01:45]}  Qxe5 {[%clk 0:00:58]} 22. Be3 {[%clk 0:01:27]}  Bf6 {[%clk 0:00:38]} 23. Rae1 {[%clk 0:01:21]}  Bd7 {[%clk 0:00:37]} 24. Bd2 {[%clk 0:00:59]}  Rg8+ {[%clk 0:00:33]} 25. Kh2 {[%clk 0:00:57]}  Qd6 {[%clk 0:00:32]} 26. Rhf1 {[%clk 0:00:56]}  a6 {[%clk 0:00:27]} 27. Kh1 {[%clk 0:00:56]}  Bb5 {[%clk 0:00:25]} 28. Qe3 {[%clk 0:00:23]}  Re5 {[%clk 0:00:19]} 29. Bc3 {[%clk 0:00:20]}  Rxe3 {[%clk 0:00:04]} 30. Bxf6+ {[%clk 0:00:20]}  Rg7 {[%clk 0:00:05]} 31. Rxe3 {[%clk 0:00:19]}  Bxf1 {[%clk 0:00:04]} 32. Nxh5 {[%clk 0:00:16]}  Kg8 {[%clk 0:00:04]} 33. Bxg7 {[%clk 0:00:14]}  Qc5 {[%clk 0:00:03]} 34. Rg3 {[%clk 0:00:12]}  Qxc2 {[%clk 0:00:03]} 35. Bd4+ {[%clk 0:00:11]}  Kf8 {[%clk 0:00:03]} 36. Nf6 {[%clk 0:00:10]}  Kf7 {[%clk 0:00:02]} 37. Nd7 {[%clk 0:00:09]}  Be2 {[%clk 0:00:02]} 38. Rg7+ {[%clk 0:00:10]}  Ke8 {[%clk 0:00:01]} 39. Nf6+ {[%clk 0:00:10]}  Kd8 {[%clk 0:00:02]} 40. Rd7+ {[%clk 0:00:11]}  Kc8 {[%clk 0:00:02]} 41. Bb6 {[%clk 0:00:11]}  Qc1+ {[%clk 0:00:02]} 42. Kh2 {[%clk 0:00:11]}  Qh6+ {[%clk 0:00:03]} 43. Kg1 {[%clk 0:00:11]}  Qxf6 {[%clk 0:00:03]} 44. Rc7+ {[%clk 0:00:10]}  Kb8 {[%clk 0:00:03]} 45. Rd7 {[%clk 0:00:11]}  Kc8 {[%clk 0:00:02]} 46. Rc7+ {[%clk 0:00:11]}  Kb8 {[%clk 0:00:03]} 47. Rd7 {[%clk 0:00:11]}  Bb5 {[%clk 0:00:02]} 48. Rd8+ {[%clk 0:00:11]}  Qxd8 {[%clk 0:00:03]} 49. Bxd8 {[%clk 0:00:12]}  Kc8 {[%clk 0:00:04]} 50. Bb6 {[%clk 0:00:13]}  Kd7 {[%clk 0:00:04]} 51. Kf2 {[%clk 0:00:14]}  Kc6 {[%clk 0:00:05]} 52. Ke3 {[%clk 0:00:14]}  Kxb6 {[%clk 0:00:05]} 0-1


[Site "https://www.chess.com"]

[Event "Titled Tuesday Blitz November 15 Early 2022"]
[White "Trost, Edvin"]
[Black "Kozak, Adam"]
[WhiteFideId "1729519"]
[BlackFideId "753246"]
[WhiteElo "2247"]
[BlackElo "2459"]
[Result "1/2-1/2"]
[Round "02"]
[TimeControl "180+1"]
[Date "2022.11.15"]
[WhiteClock "0:01:13"]
[BlackClock "0:00:50"]

1. d4 {[%clk 0:03:00]}  Nf6 {[%clk 0:02:56]} 2. Nf3 {[%clk 0:03:00]}  g6 {[%clk 0:02:55]} 3. g3 {[%clk 0:02:57]}  Bg7 {[%clk 0:02:55]} 4. Bg2 {[%clk 0:02:57]}  d5 {[%clk 0:02:56]} 5. O-O {[%clk 0:02:58]}  c6 {[%clk 0:02:56]} 6. Nbd2 {[%clk 0:02:56]}  O-O {[%clk 0:02:55]} 7. b3 {[%clk 0:02:57]}  Ne4 {[%clk 0:02:54]} 8. Bb2 {[%clk 0:02:57]}  Nxd2 {[%clk 0:02:53]} 9. Qxd2 {[%clk 0:02:57]}  Nd7 {[%clk 0:02:53]} 10. Rfe1 {[%clk 0:02:57]}  Nf6 {[%clk 0:02:54]} 11. Ne5 {[%clk 0:02:57]}  Bf5 {[%clk 0:02:53]} 12. c4 {[%clk 0:02:55]}  Be4 {[%clk 0:02:49]} 13. Bh3 {[%clk 0:02:42]}  Bf5 {[%clk 0:02:49]} 14. Bg2 {[%clk 0:02:24]}  Rc8 {[%clk 0:02:49]} 15. Qe3 {[%clk 0:02:20]}  Be4 {[%clk 0:02:47]} 16. Bh3 {[%clk 0:02:20]}  Bf5 {[%clk 0:02:47]} 17. Bg2 {[%clk 0:02:20]}  Re8 {[%clk 0:02:47]} 18. a3 {[%clk 0:02:18]}  Be6 {[%clk 0:02:46]} 19. Rac1 {[%clk 0:02:18]}  Qb6 {[%clk 0:02:41]} 20. Qc3 {[%clk 0:02:15]}  Red8 {[%clk 0:02:34]} 21. Red1 {[%clk 0:02:10]}  Ne4 {[%clk 0:02:31]} 22. Qe3 {[%clk 0:02:04]}  Bxe5 {[%clk 0:02:30]} 23. c5 {[%clk 0:01:54]}  Bf4 {[%clk 0:02:01]} 24. gxf4 {[%clk 0:01:42]}  Qc7 {[%clk 0:02:01]} 25. Bxe4 {[%clk 0:01:41]}  dxe4 {[%clk 0:02:02]} 26. Qxe4 {[%clk 0:01:42]}  Bxb3 {[%clk 0:02:00]} 27. Rd2 {[%clk 0:01:42]}  Bd5 {[%clk 0:02:00]} 28. Qe5 {[%clk 0:01:42]}  f6 {[%clk 0:01:54]} 29. Qxc7 {[%clk 0:01:41]}  Rxc7 {[%clk 0:01:55]} 30. f3 {[%clk 0:01:40]}  f5 {[%clk 0:01:54]} 31. Bc3 {[%clk 0:01:40]}  b6 {[%clk 0:01:51]} 32. Rb2 {[%clk 0:01:37]}  Rb7 {[%clk 0:01:50]} 33. Kf2 {[%clk 0:01:33]}  Rdb8 {[%clk 0:01:49]} 34. Rcc2 {[%clk 0:01:31]}  bxc5 {[%clk 0:01:46]} 35. dxc5 {[%clk 0:01:27]}  Rb3 {[%clk 0:01:45]} 36. Bb4 {[%clk 0:01:25]}  a5 {[%clk 0:01:45]} 37. Rxb3 {[%clk 0:01:16]}  Bxb3 {[%clk 0:01:44]} 38. Rb2 {[%clk 0:01:17]}  a4 {[%clk 0:01:42]} 39. Rd2 {[%clk 0:01:16]}  Be6 {[%clk 0:01:35]} 40. e4 {[%clk 0:01:15]}  Kf7 {[%clk 0:01:35]} 41. Ke3 {[%clk 0:01:15]}  Ke8 {[%clk 0:01:35]} 42. h4 {[%clk 0:01:12]}  Bb3 {[%clk 0:01:34]} 43. Rd4 {[%clk 0:01:12]}  Rb7 {[%clk 0:01:32]} 44. Rd2 {[%clk 0:01:10]}  Be6 {[%clk 0:01:31]} 45. Rd4 {[%clk 0:01:10]}  Rb8 {[%clk 0:01:31]} 46. Rd2 {[%clk 0:01:11]}  Kf7 {[%clk 0:01:31]} 47. Rd4 {[%clk 0:01:11]}  Kg7 {[%clk 0:01:25]} 48. Rd2 {[%clk 0:01:11]}  Kh6 {[%clk 0:01:25]} 49. Kd4 {[%clk 0:01:00]}  fxe4 {[%clk 0:00:36]} 50. fxe4 {[%clk 0:00:49]}  Kh5 {[%clk 0:00:36]} 51. Ke5 {[%clk 0:00:49]}  Bg4 {[%clk 0:00:37]} 52. f5 {[%clk 0:00:39]}  gxf5 {[%clk 0:00:33]} 53. exf5 {[%clk 0:00:40]}  Rf8 {[%clk 0:00:33]} 54. Rf2 {[%clk 0:00:37]}  Kxh4 {[%clk 0:00:33]} 55. f6 {[%clk 0:00:14]}  exf6+ {[%clk 0:00:23]} 56. Rxf6 {[%clk 0:00:15]}  Rxf6 {[%clk 0:00:12]} 57. Kxf6 {[%clk 0:00:16]}  Kg3 {[%clk 0:00:06]} 58. Kg5 {[%clk 0:00:15]}  h5 {[%clk 0:00:06]} 59. Bc3 {[%clk 0:00:15]}  Be2 {[%clk 0:00:04]} 60. Bb4 {[%clk 0:00:12]}  Kf2 {[%clk 0:00:03]} 61. Kh4 {[%clk 0:00:12]}  Ke3 {[%clk 0:00:03]} 62. Kg3 {[%clk 0:00:13]}  Kd4 {[%clk 0:00:01]} 63. Kh4 {[%clk 0:00:14]}  Bg4 {[%clk 0:00:02]} 64. Kg3 {[%clk 0:00:15]}  Kd5 {[%clk 0:00:02]} 65. Kh4 {[%clk 0:00:16]}  Ke4 {[%clk 0:00:03]} 66. Bc3 {[%clk 0:00:16]}  Ke3 {[%clk 0:00:03]} 67. Bb4 {[%clk 0:00:17]}  Kf2 {[%clk 0:00:03]} 68. Ba5 {[%clk 0:00:17]}  Be2 {[%clk 0:00:04]} 69. Bb4 {[%clk 0:00:18]}  Ke3 {[%clk 0:00:03]} 70. Bc3 {[%clk 0:00:18]}  Ke4 {[%clk 0:00:03]} 71. Bb4 {[%clk 0:00:19]}  Kd4 {[%clk 0:00:03]} 72. Kg3 {[%clk 0:00:19]}  Ke5 {[%clk 0:00:04]} 73. Kh4 {[%clk 0:00:20]}  Kf4 {[%clk 0:00:04]} 74. Bd2+ {[%clk 0:00:20]}  Ke4 {[%clk 0:00:05]} 75. Bb4 {[%clk 0:00:21]}  Kd3 {[%clk 0:00:05]} 76. Ba5 {[%clk 0:00:21]}  Kc2 {[%clk 0:00:06]} 77. Bb4 {[%clk 0:00:22]}  Kb3 {[%clk 0:00:07]} 78. Kg3 {[%clk 0:00:23]}  Bd1 {[%clk 0:00:07]} 79. Kf2 {[%clk 0:00:24]}  h4 {[%clk 0:00:07]} 80. Kg2 {[%clk 0:00:23]}  Bg4 {[%clk 0:00:07]} 81. Kh2 {[%clk 0:00:24]}  h3 {[%clk 0:00:08]} 82. Kg3 {[%clk 0:00:25]}  Kc4 {[%clk 0:00:08]} 83. Kh2 {[%clk 0:00:26]}  Be6 {[%clk 0:00:08]} 84. Kg3 {[%clk 0:00:27]}  Kd4 {[%clk 0:00:09]} 85. Kh2 {[%clk 0:00:28]}  Ke3 {[%clk 0:00:10]} 86. Bc3 {[%clk 0:00:28]}  Kf2 {[%clk 0:00:11]} 87. Bb4 {[%clk 0:00:29]}  Bd5 {[%clk 0:00:08]} 88. Bc3 {[%clk 0:00:29]}  Bg2 {[%clk 0:00:09]} 89. Bb4 {[%clk 0:00:30]}  Kf1 {[%clk 0:00:10]} 90. Bc3 {[%clk 0:00:30]}  Ke2 {[%clk 0:00:10]} 91. Bb4 {[%clk 0:00:31]}  Kd3 {[%clk 0:00:11]} 92. Ba5 {[%clk 0:00:32]}  Kc2 {[%clk 0:00:12]} 93. Bb4 {[%clk 0:00:32]}  Kb3 {[%clk 0:00:11]} 94. Kg1 {[%clk 0:00:33]}  Kc4 {[%clk 0:00:12]} 95. Kh2 {[%clk 0:00:34]}  Bf3 {[%clk 0:00:12]} 96. Kxh3 {[%clk 0:00:33]}  Bd5 {[%clk 0:00:13]} 97. Kg3 {[%clk 0:00:34]}  Kb5 {[%clk 0:00:13]} 98. Kh4 {[%clk 0:00:35]}  Kc4 {[%clk 0:00:13]} 99. Kg5 {[%clk 0:00:36]}  Kb5 {[%clk 0:00:14]} 100. Kf6 {[%clk 0:00:37]}  Bb3 {[%clk 0:00:15]} 101. Ke7 {[%clk 0:00:38]}  Bc2 {[%clk 0:00:16]} 102. Kd8 {[%clk 0:00:38]}  Bb1 {[%clk 0:00:17]} 103. Kc7 {[%clk 0:00:39]}  Ba2 {[%clk 0:00:17]} 104. Kd6 {[%clk 0:00:40]}  Bb3 {[%clk 0:00:18]} 105. Ke5 {[%clk 0:00:41]}  Bd1 {[%clk 0:00:19]} 106. Kd4 {[%clk 0:00:42]}  Be2 {[%clk 0:00:20]} 107. Kc3 {[%clk 0:00:43]}  Bf1 {[%clk 0:00:21]} 108. Kd2 {[%clk 0:00:44]}  Bg2 {[%clk 0:00:22]} 109. Ke1 {[%clk 0:00:45]}  Bh1 {[%clk 0:00:22]} 110. Kf2 {[%clk 0:00:45]}  Bd5 {[%clk 0:00:23]} 111. Ke3 {[%clk 0:00:46]}  Ka6 {[%clk 0:00:24]} 112. Kd4 {[%clk 0:00:46]}  Kb5 {[%clk 0:00:25]} 113. Ke5 {[%clk 0:00:47]}  Bb3 {[%clk 0:00:25]} 114. Kd6 {[%clk 0:00:48]}  Bc4 {[%clk 0:00:26]} 115. Kc7 {[%clk 0:00:49]}  Bd5 {[%clk 0:00:27]} 116. Kb7 {[%clk 0:00:49]}  Bh1 {[%clk 0:00:28]} 117. Ka7 {[%clk 0:00:49]}  Bg2 {[%clk 0:00:29]} 118. Kb8 {[%clk 0:00:50]}  Bh1 {[%clk 0:00:30]} 119. Kc7 {[%clk 0:00:51]}  Bg2 {[%clk 0:00:30]} 120. Kd8 {[%clk 0:00:52]}  Bh1 {[%clk 0:00:31]} 121. Ke7 {[%clk 0:00:53]}  Bd5 {[%clk 0:00:32]} 122. Kf6 {[%clk 0:00:54]}  Ba2 {[%clk 0:00:32]} 123. Ke5 {[%clk 0:00:55]}  Bc4 {[%clk 0:00:32]} 124. Kf4 {[%clk 0:00:56]}  Bd5 {[%clk 0:00:32]} 125. Ke3 {[%clk 0:00:56]}  Ka6 {[%clk 0:00:33]} 126. Kf2 {[%clk 0:00:57]}  Kb5 {[%clk 0:00:34]} 127. Kg1 {[%clk 0:00:58]}  Ka6 {[%clk 0:00:35]} 128. Kh2 {[%clk 0:00:59]}  Kb5 {[%clk 0:00:36]} 129. Kg3 {[%clk 0:01:00]}  Ka6 {[%clk 0:00:36]} 130. Kf2 {[%clk 0:01:01]}  Bc4 {[%clk 0:00:37]} 131. Ke3 {[%clk 0:01:02]}  Bb5 {[%clk 0:00:37]} 132. Kf4 {[%clk 0:01:03]}  Kb7 {[%clk 0:00:38]} 133. Ke5 {[%clk 0:01:04]}  Kc8 {[%clk 0:00:39]} 134. Kd6 {[%clk 0:01:05]}  Kd8 {[%clk 0:00:40]} 135. Ba5+ {[%clk 0:01:04]}  Ke8 {[%clk 0:00:41]} 136. Bc7 {[%clk 0:01:05]}  Kf7 {[%clk 0:00:42]} 137. Bb6 {[%clk 0:01:05]}  Kg6 {[%clk 0:00:43]} 138. Ba5 {[%clk 0:01:06]}  Kg5 {[%clk 0:00:44]} 139. Bb4 {[%clk 0:01:07]}  Kg4 {[%clk 0:00:44]} 140. Kc7 {[%clk 0:01:08]}  Kf4 {[%clk 0:00:45]} 141. Kb6 {[%clk 0:01:09]}  Ke4 {[%clk 0:00:46]} 142. Ka5 {[%clk 0:01:10]}  Kd4 {[%clk 0:00:47]} 143. Kb6 {[%clk 0:01:11]}  Kc4 {[%clk 0:00:48]} 144. Kc7 {[%clk 0:01:12]}  Kd5 {[%clk 0:00:49]} 145. Kd8 {[%clk 0:01:13]}  Ke6 {[%clk 0:00:50]} 146. Ke8 {[%clk 0:01:13]} 1/2-1/2


[Site "https://www.chess.com"]

[Event "Titled Tuesday Blitz November 15 Early 2022"]
[White "Tymrakiewicz, Rafal"]
[Black "Fernandez Hernandez, Gerardo"]
[WhiteFideId "1108832"]
[BlackFideId "2207400"]
[WhiteElo "2138"]
[BlackElo "2212"]
[Result "0-1"]
[Round "02"]
[TimeControl "180+1"]
[Date "2022.11.16"]
[WhiteClock "0:00:01"]
[BlackClock "0:00:15"]

1. d4 {[%clk 0:03:00]}  Nf6 {[%clk 0:02:59]} 2. Bg5 {[%clk 0:02:55]}  e6 {[%clk 0:02:57]} 3. e3 {[%clk 0:02:55]}  h6 {[%clk 0:02:55]} 4. Bh4 {[%clk 0:02:54]}  b6 {[%clk 0:02:54]} 5. Nd2 {[%clk 0:02:54]}  Bb7 {[%clk 0:02:54]} 6. Ngf3 {[%clk 0:02:54]}  Be7 {[%clk 0:02:54]} 7. Bd3 {[%clk 0:02:53]}  O-O {[%clk 0:02:53]} 8. O-O {[%clk 0:02:53]}  c5 {[%clk 0:02:53]} 9. c3 {[%clk 0:02:53]}  cxd4 {[%clk 0:02:52]} 10. exd4 {[%clk 0:02:51]}  Nc6 {[%clk 0:02:51]} 11. Re1 {[%clk 0:02:51]}  Nd5 {[%clk 0:02:49]} 12. Bg3 {[%clk 0:02:51]}  d6 {[%clk 0:02:34]} 13. h3 {[%clk 0:02:47]}  Qd7 {[%clk 0:02:30]} 14. Qe2 {[%clk 0:02:47]}  Rae8 {[%clk 0:02:24]} 15. Bh2 {[%clk 0:02:32]}  Bf6 {[%clk 0:02:04]} 16. Qe4 {[%clk 0:02:29]}  g6 {[%clk 0:02:01]} 17. h4 {[%clk 0:02:22]}  Bg7 {[%clk 0:01:55]} 18. h5 {[%clk 0:02:19]}  f5 {[%clk 0:01:54]} 19. Qe2 {[%clk 0:02:18]}  g5 {[%clk 0:01:49]} 20. a3 {[%clk 0:02:15]}  Qf7 {[%clk 0:01:41]} 21. Bxd6 {[%clk 0:01:58]}  Qxh5 {[%clk 0:01:37]} 22. c4 {[%clk 0:01:58]}  Nf4 {[%clk 0:01:28]} 23. Bxf4 {[%clk 0:01:58]}  gxf4 {[%clk 0:01:28]} 24. Nb3 {[%clk 0:01:52]}  Kh8 {[%clk 0:01:14]} 25. Ne5 {[%clk 0:01:52]}  Qxe2 {[%clk 0:01:09]} 26. Rxe2 {[%clk 0:01:52]}  Nxe5 {[%clk 0:01:04]} 27. dxe5 {[%clk 0:01:52]}  Rg8 {[%clk 0:00:58]} 28. f3 {[%clk 0:01:41]}  Bf8 {[%clk 0:00:42]} 29. Kf2 {[%clk 0:01:18]}  a5 {[%clk 0:00:41]} 30. a4 {[%clk 0:01:14]}  Be7 {[%clk 0:00:40]} 31. Rd1 {[%clk 0:01:04]}  Rd8 {[%clk 0:00:39]} 32. Bc2 {[%clk 0:01:00]}  Bc6 {[%clk 0:00:37]} 33. Red2 {[%clk 0:00:52]}  Bxa4 {[%clk 0:00:28]} 34. Rxd8 {[%clk 0:00:52]}  Rxd8 {[%clk 0:00:28]} 35. Rxd8+ {[%clk 0:00:52]}  Bxd8 {[%clk 0:00:28]} 36. Na1 {[%clk 0:00:53]}  Bc6 {[%clk 0:00:20]} 37. Nb3 {[%clk 0:00:48]}  Bc7 {[%clk 0:00:20]} 38. Nd4 {[%clk 0:00:48]}  Bd7 {[%clk 0:00:20]} 39. Ne2 {[%clk 0:00:28]}  Bxe5 {[%clk 0:00:19]} 40. b3 {[%clk 0:00:29]}  Kg7 {[%clk 0:00:18]} 41. Kg1 {[%clk 0:00:20]}  Kf6 {[%clk 0:00:18]} 42. Kh2 {[%clk 0:00:20]}  Bd6 {[%clk 0:00:17]} 43. Kh3 {[%clk 0:00:20]}  Bc5 {[%clk 0:00:17]} 44. Kh4 {[%clk 0:00:20]}  Bf2+ {[%clk 0:00:17]} 45. Kh5 {[%clk 0:00:20]}  Kg7 {[%clk 0:00:17]} 46. g3 {[%clk 0:00:07]}  fxg3 {[%clk 0:00:16]} 47. Nf4 {[%clk 0:00:04]}  Be8+ {[%clk 0:00:15]} 48. Kh4 {[%clk 0:00:04]}  g2+ {[%clk 0:00:15]} 49. Kh3 {[%clk 0:00:03]}  g1=Q {[%clk 0:00:15]} 50. Nxe6+ {[%clk 0:00:04]}  Kg8 {[%clk 0:00:15]} 51. Bxf5 {[%clk 0:00:01]}  Qg3# {[%clk 0:00:15]} 0-1


[Site "https://www.chess.com"]

[Event "Titled Tuesday Blitz November 15 Early 2022"]
[White "Van Foreest, Machteld"]
[Black "Kopczynski, Michal"]
[WhiteFideId "1051563"]
[BlackFideId "1124200"]
[WhiteElo "2018"]
[BlackElo "2235"]
[Result "1-0"]
[Round "02"]
[TimeControl "180+1"]
[Date "2022.11.16"]
[WhiteClock "0:00:09"]
[BlackClock "0:00:05"]

1. e4 {[%clk 0:02:57]}  b6 {[%clk 0:02:59]} 2. d4 {[%clk 0:02:57]}  Bb7 {[%clk 0:03:00]} 3. Nc3 {[%clk 0:02:57]}  e6 {[%clk 0:03:00]} 4. Nf3 {[%clk 0:02:56]}  Nf6 {[%clk 0:03:00]} 5. Bd3 {[%clk 0:02:56]}  d5 {[%clk 0:03:01]} 6. exd5 {[%clk 0:02:49]}  Nxd5 {[%clk 0:03:01]} 7. Nxd5 {[%clk 0:02:48]}  Bxd5 {[%clk 0:03:01]} 8. O-O {[%clk 0:02:48]}  Be7 {[%clk 0:03:00]} 9. Bf4 {[%clk 0:02:44]}  O-O {[%clk 0:03:00]} 10. Ne5 {[%clk 0:02:39]}  Nd7 {[%clk 0:02:47]} 11. Qh5 {[%clk 0:02:17]}  Nf6 {[%clk 0:02:45]} 12. Qh3 {[%clk 0:02:14]}  Be4 {[%clk 0:02:05]} 13. Bxe4 {[%clk 0:02:01]}  Nxe4 {[%clk 0:02:06]} 14. Rfe1 {[%clk 0:02:00]}  Qxd4 {[%clk 0:01:59]} 15. Qf3 {[%clk 0:01:20]}  Nf6 {[%clk 0:01:19]} 16. Nc6 {[%clk 0:01:17]}  Qd7 {[%clk 0:01:11]} 17. Rad1 {[%clk 0:01:05]}  Bd6 {[%clk 0:01:06]} 18. c4 {[%clk 0:00:53]}  Nh5 {[%clk 0:00:29]} 19. Ne5 {[%clk 0:00:43]}  Qa4 {[%clk 0:00:13]} 20. Qxh5 {[%clk 0:00:41]}  Bxe5 {[%clk 0:00:09]} 21. Bxe5 {[%clk 0:00:39]}  Rad8 {[%clk 0:00:10]} 22. Rxd8 {[%clk 0:00:33]}  Rxd8 {[%clk 0:00:10]} 23. Qg5 {[%clk 0:00:33]}  f6 {[%clk 0:00:09]} 24. Bxf6 {[%clk 0:00:33]}  Rd7 {[%clk 0:00:09]} 25. Bc3 {[%clk 0:00:23]}  Qxc4 {[%clk 0:00:09]} 26. g3 {[%clk 0:00:23]}  Qxa2 {[%clk 0:00:08]} 27. Qb5 {[%clk 0:00:19]}  Qd5 {[%clk 0:00:07]} 28. Qxd5 {[%clk 0:00:18]}  exd5 {[%clk 0:00:07]} 29. Re8+ {[%clk 0:00:19]}  Kf7 {[%clk 0:00:08]} 30. Re3 {[%clk 0:00:11]}  c5 {[%clk 0:00:08]} 31. Kf1 {[%clk 0:00:10]}  d4 {[%clk 0:00:08]} 32. Rd3 {[%clk 0:00:09]}  Ke6 {[%clk 0:00:07]} 33. Bd2 {[%clk 0:00:09]}  Kd5 {[%clk 0:00:08]} 34. b4 {[%clk 0:00:09]}  c4 {[%clk 0:00:06]} 35. Rf3 {[%clk 0:00:08]}  c3 {[%clk 0:00:07]} 36. Bxc3 {[%clk 0:00:07]}  dxc3 {[%clk 0:00:07]} 37. Rxc3 {[%clk 0:00:08]}  Kd4 {[%clk 0:00:07]} 38. Rc1 {[%clk 0:00:08]}  Re7 {[%clk 0:00:06]} 39. f4 {[%clk 0:00:08]}  Rf7 {[%clk 0:00:05]} 40. Kf2 {[%clk 0:00:09]}  Re7 {[%clk 0:00:05]} 41. Kf3 {[%clk 0:00:09]}  Kd5 {[%clk 0:00:06]} 42. f5 {[%clk 0:00:07]}  Kd4 {[%clk 0:00:06]} 43. g4 {[%clk 0:00:08]}  Kd3 {[%clk 0:00:06]} 44. g5 {[%clk 0:00:08]}  Kd2 {[%clk 0:00:07]} 45. Rc6 {[%clk 0:00:08]}  Rf7 {[%clk 0:00:04]} 46. f6 {[%clk 0:00:08]}  gxf6 {[%clk 0:00:04]} 47. gxf6 {[%clk 0:00:09]}  Kd3 {[%clk 0:00:03]} 48. Kf4 {[%clk 0:00:09]}  Kd4 {[%clk 0:00:04]} 49. Kf5 {[%clk 0:00:09]}  Kd5 {[%clk 0:00:05]} 50. b5 {[%clk 0:00:09]}  Kd4 {[%clk 0:00:04]} 51. Ke6 {[%clk 0:00:09]}  Rf8 {[%clk 0:00:04]} 52. f7 {[%clk 0:00:09]}  a6 {[%clk 0:00:03]} 53. bxa6 {[%clk 0:00:09]}  b5 {[%clk 0:00:03]} 54. Ke7 {[%clk 0:00:09]}  Rb8 {[%clk 0:00:03]} 55. f8=Q {[%clk 0:00:09]}  Rxf8 {[%clk 0:00:04]} 56. Kxf8 {[%clk 0:00:10]}  b4 {[%clk 0:00:04]} 57. Rb6 {[%clk 0:00:10]}  Kc5 {[%clk 0:00:04]} 58. Rxb4 {[%clk 0:00:09]}  Kxb4 {[%clk 0:00:05]} 59. a7 {[%clk 0:00:09]} 1-0


[Site "https://www.chess.com"]

[Event "Titled Tuesday Blitz November 15 Early 2022"]
[White "Vargas, Mauricio"]
[Black "Fiol, Fabrice"]
[WhiteFideId "4404572"]
[BlackFideId "611670"]
[WhiteElo "2025"]
[BlackElo "2415"]
[Result "0-1"]
[Round "02"]
[TimeControl "180+1"]
[Date "2022.11.16"]
[WhiteClock "0:00:12"]
[BlackClock "0:02:29"]

1. e4 {[%clk 0:02:19]}  c5 {[%clk 0:02:59]} 2. Nc3 {[%clk 0:02:13]}  a6 {[%clk 0:02:58]} 3. f4 {[%clk 0:02:02]}  e6 {[%clk 0:02:58]} 4. Nf3 {[%clk 0:02:03]}  d5 {[%clk 0:02:58]} 5. e5 {[%clk 0:02:02]}  Ne7 {[%clk 0:02:57]} 6. Be2 {[%clk 0:01:59]}  Nf5 {[%clk 0:02:58]} 7. O-O {[%clk 0:01:51]}  h5 {[%clk 0:02:57]} 8. g3 {[%clk 0:01:11]}  Nc6 {[%clk 0:02:56]} 9. Ng5 {[%clk 0:01:04]}  Be7 {[%clk 0:02:44]} 10. Nxf7 {[%clk 0:00:36]}  Kxf7 {[%clk 0:02:35]} 11. Bxh5+ {[%clk 0:00:31]}  Kg8 {[%clk 0:02:36]} 12. g4 {[%clk 0:00:12]}  Nh4 {[%clk 0:02:29]} 0-1


[Site "https://www.chess.com"]

[Event "Titled Tuesday Blitz November 15 Early 2022"]
[White "Vlassov, Nikolai"]
[Black "Artemenko, Oleg"]
[WhiteFideId "4103360"]
[BlackFideId "14201798"]
[WhiteElo "2324"]
[BlackElo "2287"]
[Result "0-1"]
[Round "02"]
[TimeControl "180+1"]
[Date "2022.11.16"]
[WhiteClock "0:01:14"]
[BlackClock "0:01:02"]

1. e4 {[%clk 0:03:00]}  e6 {[%clk 0:03:00]} 2. c4 {[%clk 0:03:00]}  d5 {[%clk 0:02:52]} 3. cxd5 {[%clk 0:03:00]}  exd5 {[%clk 0:02:52]} 4. Qb3 {[%clk 0:03:00]}  Nf6 {[%clk 0:02:33]} 5. e5 {[%clk 0:03:00]}  Ne4 {[%clk 0:02:29]} 6. d4 {[%clk 0:03:00]}  c5 {[%clk 0:02:26]} 7. Bb5+ {[%clk 0:02:58]}  Nc6 {[%clk 0:02:24]} 8. Ne2 {[%clk 0:02:58]}  Qa5+ {[%clk 0:02:13]} 9. Nbc3 {[%clk 0:02:57]}  c4 {[%clk 0:02:07]} 10. Bxc6+ {[%clk 0:02:56]}  bxc6 {[%clk 0:02:06]} 11. Qc2 {[%clk 0:02:56]}  Bf5 {[%clk 0:02:04]} 12. Qd1 {[%clk 0:02:23]}  Bb4 {[%clk 0:01:59]} 13. O-O {[%clk 0:02:18]}  Nxc3 {[%clk 0:01:51]} 14. bxc3 {[%clk 0:02:18]}  Bxc3 {[%clk 0:01:52]} 15. Nxc3 {[%clk 0:02:16]}  Qxc3 {[%clk 0:01:53]} 16. Be3 {[%clk 0:02:11]}  O-O {[%clk 0:01:50]} 17. Qa4 {[%clk 0:02:07]}  Bd7 {[%clk 0:01:33]} 18. Rfc1 {[%clk 0:01:56]}  Qd3 {[%clk 0:01:33]} 19. Rab1 {[%clk 0:01:53]}  Qg6 {[%clk 0:01:22]} 20. Kh1 {[%clk 0:01:40]}  h5 {[%clk 0:01:13]} 21. Rb7 {[%clk 0:01:39]}  Bf5 {[%clk 0:01:11]} 22. Rxa7 {[%clk 0:01:33]}  Rab8 {[%clk 0:01:04]} 23. Ra6 {[%clk 0:01:20]}  Be4 {[%clk 0:01:04]} 24. f3 {[%clk 0:01:20]}  Rb2 {[%clk 0:01:03]} 25. Rg1 {[%clk 0:01:19]}  Rxg2 {[%clk 0:01:02]} 26. Rxg2 {[%clk 0:01:14]}  Bxf3 {[%clk 0:01:02]} 0-1


[Site "https://www.chess.com"]